bitfinex/quotes_ETHUSD_20230403
["timestamp","ask_amount","ask_price","bid_price","bid_amount"]
[1680486194182,0.998,1772.0,1771.1,0.28229]
[1680486194361,0.998,1772.0,1771.2,0.28228]
[1680486194362,0.839,1771.3,1771.2,0.28228]
[1680486194521,0.839,1771.5,1771.2,0.360508]
[1680486194724,0.839,1771.5,1771.2,0.078228]
[1680486194921,4.654,1772.0,1771.1,0.28229]
[1680486194922,3.0,1771.9,1771.1,0.28229]
[1680486195163,0.839,1771.3,1770.8,1.56815422]
[1680486195367,0.839,1770.9,1770.8,1.56815422]
[1680486195584,0.007,1771.2,1770.8,1.72496964]
[1680486195727,0.007,1771.3,1770.8,1.72496964]
[1680486196095,4.652,1772.5,1771.4,0.161]
[1680486196264,0.23,1772.4,1772.0,0.161]
[1680486196571,0.23,1772.4,1771.6,8.0]
[1680486196572,0.93795562,1772.6,1772.2,0.28212]
[1680486196729,0.68595562,1772.6,1772.2,0.28212]
[1680486196929,0.68595562,1772.6,1772.2,0.529618]
[1680486197189,0.74749245,1772.3,1772.2,0.529618]
[1680486197332,0.009,1773.0,1772.8,0.161]
[1680486197642,0.007,1773.5,1772.9,0.28202]
[1680486197832,0.009,1773.6,1772.9,0.366628]
[1680486198027,0.839,1773.3,1772.9,0.366628]
[1680486198335,4.652,1773.3,1772.9,0.28202]
[1680486198538,0.009,1773.4,1772.9,0.28202]
[1680486198739,0.02286934,1773.6,1772.9,0.28202]
[1680486198977,0.839,1773.3,1772.9,0.28202]
[1680486199429,0.84430899,1773.3,1772.9,0.28202]
[1680486200580,4.652,1773.2,1772.9,0.28202]
[1680486200869,0.02286934,1773.1,1772.9,0.28202]
[1680486201099,5.484,1773.0,1772.3,0.002]
[1680486201250,5.484,1773.0,1772.2,1.12852]
[1680486201251,4.652,1772.8,1772.2,1.12852]
[1680486201569,4.652,1772.8,1772.4,0.84627]
[1680486201570,0.839,1772.5,1772.4,0.84627]
[1680486201783,0.839,1772.4,1772.3,0.28211]
[1680486202176,0.839,1772.4,1771.8,0.1]
[1680486202177,0.839,1772.1,1771.9,0.56433]
[1680486202348,0.839,1772.1,1771.8,0.1]
[1680486202349,0.839,1771.9,1771.8,0.1]
[1680486202535,7.728,1771.9,1771.8,0.1]
[1680486202734,7.728,1771.9,1770.8,1.56815422]
[1680486202735,10.73,1771.9,1771.1,0.008]
[1680486202931,10.73,1771.9,1770.8,1.57415422]
[1680486202932,6.853,1771.6,1770.8,1.57415422]
[1680486203154,6.853,1771.6,1770.2,0.95602685]
[1680486203155,7.692,1771.2,1770.2,0.95602685]
[1680486203385,6.884,1770.9,1770.4,0.28241]
[1680486203691,0.009,1770.9,1770.2,0.95602685]
[1680486203892,0.839,1770.5,1770.2,0.95602685]
[1680486204189,0.72528203,1770.8,1770.2,1.05895327]
[1680486204352,0.839,1770.2,1769.7,0.66506]
[1680486204547,0.02287844,1770.1,1769.8,0.2825]
[1680486205097,0.02287844,1769.9,1769.4,0.006]
[1680486205262,0.02287844,1769.8,1768.7,0.006]
[1680486205455,0.02287844,1769.8,1768.6,0.17139]
[1680486205797,0.007,1770.0,1769.7,0.1]
[1680486206097,1.16550777,1770.8,1770.1,0.97712156]
[1680486206264,1.16550777,1770.8,1770.2,0.09771216]
[1680486206265,5.889,1770.7,1770.2,0.09771216]
[1680486206466,0.02287844,1770.4,1769.9,0.006]
[1680486206674,1.17150777,1770.8,1770.0,0.97712156]
[1680486206675,0.02287844,1770.8,1770.0,0.97712156]
[1680486206876,6.842,1770.9,1770.1,0.28246]
[1680486206877,0.02287844,1770.4,1770.1,0.28246]
[1680486207364,0.02287844,1770.4,1770.2,0.02287715]
[1680486207559,0.02287844,1770.4,1770.3,0.8473]
[1680486207762,0.008,1771.2,1770.3,0.93431772]
[1680486207963,0.02287844,1770.6,1770.3,0.36944772]
[1680486208184,0.02287844,1770.4,1770.3,0.28243]
[1680486209560,0.02800048,1770.4,1770.3,0.28243]
[1680486209961,0.02287844,1769.8,1769.7,0.38253]
[1680486210215,0.02287844,1770.3,1769.7,0.38253]
[1680486210514,6.40412204,1770.4,1769.7,0.1]
[1680486210720,6.40412204,1770.4,1768.9,0.67331]
[1680486210721,6.87987844,1770.0,1768.9,0.67331]
[1680486210922,0.02287844,1769.6,1769.1,0.28261]
[1680486211223,5.02287844,1769.1,1769.0,0.006]
[1680486211424,5.739,1769.0,1768.9,0.1]
[1680486211624,5.01887844,1768.5,1768.4,1.53744097]
[1680486211847,5.01887844,1768.5,1767.3,0.17443494]
[1680486211848,0.50188784,1768.4,1768.0,19.70433304]
[1680486211996,0.5,1768.2,1768.1,0.98112156]
[1680486212198,0.5,1768.2,1768.0,19.60316522]
[1680486212199,5.01887844,1768.2,1768.0,19.60316522]
[1680486212399,0.02887844,1768.2,1768.0,19.60316522]
[1680486212596,5.98787844,1768.2,1768.0,19.60316522]
[1680486212943,5.0,1768.1,1768.0,19.60316522]
[1680486213224,13.01887844,1767.4,1767.2,16.54008887]
[1680486213524,6.842,1767.3,1767.2,13.27811411]
[1680486213724,3.002,1767.3,1767.2,13.28011411]
[1680486214026,3.002,1767.3,1766.0,22.198646]
[1680486214028,5.0,1766.5,1766.0,22.198646]
[1680486214243,0.5,1767.2,1766.1,0.02293025]
[1680486214244,6.884,1767.0,1766.1,0.02293025]
[1680486214386,6.853,1766.6,1766.0,22.204646]
[1680486214591,6.839,1766.3,1766.1,0.002]
[1680486214831,6.839,1766.3,1766.0,22.200646]
[1680486214832,0.011,1766.3,1766.0,22.200646]
[1680486215124,0.002,1766.6,1766.5,0.79697387]
[1680486215425,6.826,1767.1,1766.7,0.79697387]
[1680486215729,6.119,1767.0,1766.4,0.006]
[1680486215895,6.14393025,1767.0,1766.4,0.006]
[1680486216097,0.002,1767.0,1766.8,1.79697387]
[1680486216298,1.04749007,1767.7,1766.8,1.79697387]
[1680486216299,1.04749007,1767.7,1767.6,0.79697387]
[1680486216512,1.04749007,1767.7,1767.6,0.78897387]
[1680486217118,1.04749007,1767.7,1767.6,2.28897387]
[1680486217326,0.58905883,1767.9,1767.5,0.002]
[1680486217501,0.58905883,1767.9,1767.5,0.56577]
[1680486217824,0.58905883,1767.9,1767.8,0.78897387]
[1680486218251,0.002,1768.7,1768.6,0.78897387]
[1680486218406,3.74015054,1769.6,1768.6,0.78897387]
[1680486218407,0.008,1769.3,1768.6,0.2827]
[1680486218608,5.008,1769.4,1769.0,0.78897387]
[1680486218804,0.01,1769.4,1769.0,0.78897387]
[1680486219050,5.508,1769.4,1769.0,0.78897387]
[1680486219264,5.51,1769.4,1769.0,0.48897387]
[1680486219462,0.57393025,1769.3,1768.9,0.48897387]
[1680486219807,0.02293025,1769.3,1768.9,0.48897387]
[1680486220120,0.02010225,1769.3,1768.9,0.48897387]
[1680486220531,0.02010225,1769.3,1768.0,0.002]
[1680486220532,5.0,1768.5,1768.0,0.002]
[1680486220734,5.0,1768.5,1767.5,0.56576]
[1680486220735,5.0,1767.8,1767.5,0.56576]
[1680486220909,5.589,1767.9,1766.9,0.104]
[1680486221119,1.0,1767.4,1767.1,0.28293]
[1680486221308,0.5,1767.7,1766.9,0.1]
[1680486221309,5.61810224,1767.3,1766.9,0.1]
[1680486221537,5.61810224,1767.3,1766.5,0.008]
[1680486221538,0.002,1767.0,1766.5,0.008]
[1680486221889,0.002,1767.1,1766.1,1.006]
[1680486222148,0.002,1767.1,1766.0,22.206646]
[1680486222319,5.0,1767.0,1766.1,0.004]
[1680486222518,5.0,1767.0,1766.1,0.006]
[1680486222519,5.598,1766.9,1766.1,0.006]
[1680486222726,5.598,1766.9,1766.0,22.200646]
[1680486222727,5.80609,1766.9,1766.0,22.156646]
[1680486223048,5.10873873,1767.0,1766.1,0.00383799]
[1680486223260,5.11073873,1767.0,1766.6,1.0]
[1680486223479,5.11073873,1767.0,1766.7,0.1]
[1680486223726,5.11073873,1767.0,1766.9,1.0]
[1680486223851,5.11073873,1767.0,1766.9,9.006]
[1680486224199,0.002,1767.0,1766.9,0.008]
[1680486224347,0.002,1767.0,1766.7,1.0]
[1680486224348,8.74215054,1767.7,1766.7,0.004]
[1680486224530,0.002,1767.7,1766.8,0.28299]
[1680486224731,0.06160532,1767.7,1767.0,1.0]
[1680486225000,0.61405315,1767.8,1767.0,1.0]
[1680486225001,3.74387554,1767.8,1767.0,0.85488]
[1680486225170,5.0,1767.6,1767.0,0.56593]
[1680486225335,5.002,1767.6,1767.1,0.28293]
[1680486225534,5.002,1767.6,1766.8,0.28498]
[1680486225797,5.002,1767.6,1766.7,0.283]
[1680486225932,0.02010224,1767.5,1766.8,0.00383647]
[1680486226134,0.008,1768.1,1767.3,1.0]
[1680486226372,1.90841483,1768.3,1766.3,5.13228]
[1680486226373,0.008,1768.3,1767.6,1.0]
[1680486226573,0.008,1768.3,1767.4,8.0]
[1680486226574,5.0,1768.4,1767.5,1.006]
[1680486226891,6.0911,1768.4,1767.6,0.12353077]
[1680486227030,5.889,1768.3,1767.6,0.02293077]
[1680486227234,5.891,1768.3,1767.6,0.02293077]
[1680486227509,5.889,1768.1,1767.3,1.0]
[1680486227635,0.05,1767.7,1767.3,0.95]
[1680486227829,0.01,1768.1,1767.3,0.95]
[1680486227830,0.053,1768.0,1767.3,1.2329]
[1680486228044,0.05,1768.0,1767.5,0.95]
[1680486228353,0.008,1768.2,1767.8,0.28283]
[1680486228537,0.05,1768.7,1767.8,0.28283]
[1680486228736,0.05,1768.7,1768.0,1.23279]
[1680486228961,0.008,1768.8,1768.0,1.2328]
[1680486229276,0.05,1768.7,1768.1,0.12328]
[1680486229484,0.008,1768.8,1768.1,0.12328]
[1680486229666,0.05,1768.5,1768.1,0.12328]
[1680486230187,0.008,1768.7,1768.1,0.28278]
[1680486230346,0.00555764,1768.6,1768.1,0.28278]
[1680486231002,0.00555764,1768.6,1768.2,1.472923]
[1680486231288,0.05,1769.1,1768.5,0.95]
[1680486231441,0.05,1769.1,1768.7,0.28268]
[1680486231877,0.008,1769.4,1768.7,0.28268]
[1680486232080,0.05,1769.3,1768.7,0.28268]
[1680486232282,0.05,1769.1,1768.7,1.41345]
[1680486232487,0.05,1769.1,1768.8,0.02291523]
[1680486232644,0.05,1769.1,1768.9,0.84798]
[1680486232981,0.05,1769.3,1768.9,0.84798]
[1680486233190,0.003,1769.5,1768.9,0.87089393]
[1680486233397,0.05,1768.1,1768.0,0.006]
[1680486233565,0.05,1768.1,1767.5,5.65756]
[1680486233566,0.06691393,1768.1,1767.5,5.65756]
[1680486233768,5.044,1767.9,1767.8,1.97983]
[1680486233950,0.27914169,1768.1,1767.6,0.23]
[1680486234148,0.044,1767.7,1767.6,0.51285]
[1680486234470,0.28914169,1767.9,1767.6,0.620909]
[1680486234471,0.27914169,1767.9,1767.6,0.620909]
[1680486234675,5.0,1768.4,1767.6,0.108059]
[1680486234676,0.27914169,1767.7,1767.6,0.108059]
[1680486234858,0.502,1768.4,1767.0,1.7067081]
[1680486235054,0.502,1768.4,1767.0,1.7007081]
[1680486235055,0.198,1767.7,1767.0,1.7007081]
[1680486235273,5.0,1767.4,1767.0,1.7007081]
[1680486235468,0.002,1767.4,1767.0,1.7007081]
[1680486235682,0.002,1767.5,1767.0,1.7007081]
[1680486235887,0.502,1767.9,1767.0,2.16433891]
[1680486236091,0.002,1768.0,1767.0,2.16432891]
[1680486236384,0.27914169,1768.1,1767.0,1.88137891]
[1680486236589,6.0,1767.8,1767.0,1.7007081]
[1680486236802,0.02291393,1767.7,1767.0,1.7007081]
[1680486237035,0.30205562,1767.7,1767.0,1.7007081]
[1680486237335,0.27914169,1767.6,1767.0,1.9836581]
[1680486237489,6.002,1768.5,1767.1,0.19836581]
[1680486237684,0.00530772,1767.7,1767.1,0.48130581]
[1680486238332,0.00530772,1767.7,1767.2,1.0]
[1680486238497,6.002,1768.5,1767.3,0.84871]
[1680486238700,0.27914169,1768.0,1767.4,0.084871]
[1680486238913,0.6002,1768.5,1767.5,1.34861]
[1680486239138,6.002,1768.6,1767.5,1.84861]
[1680486239139,0.002,1768.6,1767.5,1.84861]
[1680486239314,0.002,1769.4,1768.5,1.0]
[1680486239523,0.002,1769.4,1768.1,8.0]
[1680486239524,7.51541483,1769.7,1768.6,0.28269]
[1680486239828,0.4605,1769.6,1768.6,0.28269]
[1680486239991,0.27914169,1769.6,1768.6,0.28269]
[1680486240525,0.27914169,1769.6,1768.6,0.28869]
[1680486241105,0.27914169,1769.6,1768.7,0.28268]
[1680486241526,0.11000001,1768.8,1768.7,0.28268]
[1680486242665,0.11000001,1768.8,1768.7,1.28868]
[1680486242820,0.11000001,1768.8,1768.7,2.774087]
[1680486243020,0.11000001,1768.8,1768.7,0.28868]
[1680486243223,0.11000001,1768.8,1768.7,0.28268]
[1680486243536,1.5,1768.7,1767.8,0.004]
[1680486243736,1.5,1768.7,1766.9,0.1]
[1680486243737,1.0,1768.3,1767.5,0.006]
[1680486243939,1.0,1767.9,1766.9,0.104]
[1680486244165,1.0,1767.9,1766.9,0.1]
[1680486244166,0.19797,1767.9,1766.9,0.1]
[1680486244298,1.0,1767.5,1767.0,2.1529581]
[1680486244507,0.02291393,1767.4,1767.0,2.1529581]
[1680486244929,0.30205562,1767.4,1767.0,2.1529581]
[1680486245154,0.27914169,1767.3,1767.0,2.1529581]
[1680486245522,0.008,1767.9,1767.0,2.1529581]
[1680486245757,0.00528191,1767.3,1767.1,0.21529581]
[1680486245917,0.27914169,1767.9,1767.1,0.49823581]
[1680486246132,1.91641483,1768.4,1767.1,0.49823581]
[1680486246335,0.84803999,1768.5,1767.7,6.889]
[1680486246537,0.84803999,1768.5,1768.0,5.889]
[1680486246856,0.84803999,1768.5,1768.1,0.28278]
[1680486247264,0.11000001,1768.7,1768.6,1.0]
[1680486247466,0.11000001,1768.7,1768.6,1.97894]
[1680486248521,0.11000001,1768.7,1768.6,2.20894]
[1680486248832,0.11000001,1768.7,1768.6,1.97894]
[1680486249730,0.11000001,1768.7,1768.6,0.84811]
[1680486250333,0.11000001,1768.7,1768.6,0.2827]
[1680486250538,0.11000001,1768.7,1768.2,0.56554]
[1680486250741,0.11000001,1768.7,1768.4,0.56547]
[1680486250742,0.3891417,1768.7,1768.4,0.56547]
[1680486250964,0.3891417,1768.7,1768.4,0.28272]
[1680486251189,0.3891417,1768.7,1768.4,0.367551]
[1680486251190,0.27914169,1768.6,1768.4,0.367551]
[1680486251393,0.27914169,1768.6,1768.4,0.28273]
[1680486251524,0.11000001,1768.7,1768.4,0.28273]
[1680486251720,0.11000001,1768.7,1768.5,0.5]
[1680486251721,0.00536573,1768.6,1768.5,0.5]
[1680486251950,0.00536573,1768.6,1768.5,1.34817]
[1680486252176,0.00536573,1768.6,1768.5,1.482987]
[1680486252568,0.11000001,1768.7,1768.6,1.0]
[1680486252776,0.11000001,1768.7,1768.6,2.91353]
[1680486252974,0.11000001,1768.7,1768.6,3.14353]
[1680486253307,0.11000001,1768.7,1768.6,2.14353]
[1680486253472,0.11000001,1768.7,1768.6,3.2481097]
[1680486253668,0.11000001,1768.7,1768.6,1.41353]
[1680486253883,0.11000001,1768.7,1768.6,0.2827]
[1680486254052,0.11000001,1768.7,1768.5,0.34131121]
[1680486254252,0.11000001,1768.7,1768.2,1.13105]
[1680486254253,0.02291393,1768.6,1768.2,0.28276]
[1680486254453,0.02291393,1768.6,1768.1,0.56556]
[1680486254454,0.02291393,1768.6,1767.8,0.007]
[1680486254710,0.30205562,1768.6,1768.1,0.28278]
[1680486255115,0.11537218,1768.7,1768.1,0.3057006]
[1680486255393,0.11537218,1768.7,1768.1,1.3057006]
[1680486255546,0.11000001,1768.7,1768.2,0.5]
[1680486255750,0.11000001,1768.7,1768.3,0.02291801]
[1680486256067,0.11000001,1768.7,1768.4,3.63596728]
[1680486256288,0.11000001,1768.7,1768.4,0.8542]
[1680486256491,0.11000001,1768.7,1768.4,0.8482]
[1680486257008,0.00536573,1768.6,1768.4,3.07049728]
[1680486257220,0.56529166,1768.6,1768.4,3.07049728]
[1680486257554,0.55992593,1768.6,1768.4,3.07049728]
[1680486257758,0.55992593,1768.6,1768.5,2.78776728]
[1680486258066,0.11000001,1768.7,1768.4,0.002]
[1680486258277,2.78776728,1768.6,1768.1,0.006]
[1680486258482,0.11000001,1768.7,1767.8,0.013]
[1680486258483,3.78776728,1768.5,1767.8,0.013]
[1680486258661,3.79312657,1768.5,1767.8,0.28983]
[1680486258855,0.37931266,1768.4,1767.8,0.28983]
[1680486259055,3.11707994,1768.4,1767.8,0.28983]
[1680486259469,0.3346655,1768.4,1767.8,0.28983]
[1680486259780,0.27914169,1768.5,1767.8,0.28983]
[1680486260128,1.0,1768.3,1767.8,0.28983]
[1680486260256,11.0,1768.5,1767.8,0.007]
[1680486260257,2.78776728,1768.2,1767.8,0.007]
[1680486260599,0.5,1768.1,1767.8,0.007]
[1680486260951,2.78776728,1768.2,1767.8,0.007]
[1680486260952,3.06690897,1768.2,1767.8,0.28983]
[1680486261076,3.008,1768.5,1767.8,0.28983]
[1680486261077,0.002,1768.4,1767.8,0.28983]
[1680486261261,3.0,1768.5,1767.8,0.28983]
[1680486261601,0.002,1768.6,1768.2,1.0]
[1680486261899,0.11000001,1768.7,1768.3,4.8068]
[1680486262097,0.11000001,1768.7,1768.5,0.84817]
[1680486262456,0.11000001,1768.7,1768.4,0.28272]
[1680486262659,0.11000001,1768.7,1768.0,1.1312]
[1680486262904,0.11000001,1768.7,1768.2,1.13105]
[1680486263106,0.5396505,1768.6,1768.4,0.28274]
[1680486263271,0.5396505,1768.6,1768.4,0.3698538]
[1680486263457,0.5396505,1768.6,1768.5,0.5]
[1680486263657,0.5396505,1768.6,1768.5,5.30632]
[1680486263900,0.5396505,1768.6,1768.5,5.31232]
[1680486264208,0.11000001,1768.7,1768.5,0.85417]
[1680486264507,0.11000001,1768.7,1768.5,0.28272]
[1680486264706,0.11000001,1768.7,1768.6,2.78776728]
[1680486264872,0.11000001,1768.7,1768.6,5.07375601]
[1680486265275,0.11000001,1768.7,1768.6,5.09667013]
[1680486265676,0.11000001,1768.7,1768.6,6.32667013]
[1680486265875,1e-08,1768.7,1768.6,6.32667013]
[1680486266199,1e-08,1768.7,1768.6,14.32667013]
[1680486266362,0.11000001,1768.8,1768.6,14.32667013]
[1680486266363,2e-08,1768.8,1768.6,14.32667013]
[1680486266559,2e-08,1768.8,1768.7,7.45043429]
[1680486266788,0.11000001,1769.8,1769.6,1.0]
[1680486266990,0.11000001,1769.8,1769.4,8.0]
[1680486266991,0.11000001,1770.6,1770.0,1.0]
[1680486267190,0.11000001,1770.6,1770.3,2.78776728]
[1680486267391,0.11000001,1770.6,1770.4,1.97694]
[1680486267566,0.11000001,1770.6,1770.5,2.78776728]
[1680486267762,0.11000001,1770.6,1770.5,3.07016728]
[1680486267963,0.11000001,1770.6,1770.5,2.96016727]
[1680486268274,0.11000001,1770.6,1770.5,2.98305681]
[1680486268275,0.01000001,1770.6,1770.5,2.98305681]
[1680486268476,0.01000001,1770.6,1770.5,2.96016727]
[1680486268675,1.0,1770.5,1770.4,0.002]
[1680486268903,0.006,1770.2,1769.9,0.28249]
[1680486269304,0.006,1770.2,1769.9,0.48253486]
[1680486269524,0.006,1770.2,1769.5,0.002]
[1680486269666,0.006,1770.2,1769.8,0.2825]
[1680486269869,0.006,1770.2,1769.8,0.84753]
[1680486270093,0.006,1770.2,1769.9,1.0]
[1680486270312,0.006,1770.2,1770.1,1.0]
[1680486270506,0.006,1770.2,1770.1,0.28246]
[1680486271013,0.006,1770.2,1769.8,0.2825]
[1680486271219,0.006,1770.2,1769.9,0.28249]
[1680486271388,0.006,1770.2,1769.7,0.56503]
[1680486271389,0.006,1770.2,1769.8,0.2825]
[1680486271790,0.006,1770.2,1769.8,0.367253]
[1680486272228,0.006,1770.2,1769.9,2.81066458]
[1680486272421,0.006,1770.2,1770.0,0.84745]
[1680486272716,0.006,1770.2,1770.0,3.63521728]
[1680486272889,0.006,1770.2,1770.1,0.02289471]
[1680486273092,0.006,1770.2,1770.0,0.84745]
[1680486273093,0.006,1770.2,1770.0,0.28248]
[1680486273315,0.006,1770.2,1769.6,0.56509]
[1680486273522,0.006,1770.2,1769.7,0.28252]
[1680486273523,1.006,1770.2,1769.7,0.28252]
[1680486273696,1.0,1769.9,1769.2,0.002]
[1680486273904,3.78776728,1769.9,1768.6,3.14210873]
[1680486274157,1.0,1769.4,1768.6,1.13078]
[1680486274445,2.80386546,1769.3,1768.5,0.56544]
[1680486274762,2.80386546,1769.3,1768.5,0.28272]
[1680486274763,2.99629374,1769.2,1768.5,0.28272]
[1680486274939,3.06690897,1769.2,1768.5,0.28272]
[1680486275140,0.30260216,1769.1,1768.5,0.28272]
[1680486275297,0.27654697,1769.2,1769.0,0.00436833]
[1680486275497,0.27654697,1769.2,1768.5,0.28272]
[1680486275498,3.08981014,1769.1,1768.6,0.00436833]
[1680486275712,2.81066845,1769.1,1768.4,0.006]
[1680486275913,2.81066845,1769.1,1768.2,0.28277]
[1680486275914,0.99196922,1768.8,1768.2,0.28277]
[1680486276113,1.10963947,1768.7,1767.9,0.56562]
[1680486276313,0.01963925,1768.7,1768.3,0.01245862]
[1680486276514,0.98754138,1769.2,1767.8,1.14028]
[1680486276515,1.91841483,1769.4,1768.6,0.01245862]
[1680486276701,2.78776728,1769.3,1768.9,0.01245862]
[1680486276900,2.78776728,1769.3,1769.0,0.01245862]
[1680486277300,3.02663925,1769.4,1769.1,0.01245862]
[1680486277626,0.002,1769.6,1769.1,0.28261]
[1680486277943,1.90402224,1769.9,1769.3,0.01245862]
[1680486278245,1.90402224,1769.9,1769.0,0.56527]
[1680486278246,0.1086,1770.2,1769.6,0.01245862]
[1680486278408,2.01062224,1770.2,1769.8,0.01245862]
[1680486278625,2.01062224,1770.2,1769.8,0.29496862]
[1680486278832,2.01062224,1770.2,1769.8,0.01245862]
[1680486279033,2.01062224,1770.2,1769.8,0.29496862]
[1680486279614,0.1066,1770.2,1769.8,0.29921045]
[1680486279850,0.006,1770.2,1769.8,0.29921045]
[1680486280064,0.006,1770.2,1769.8,0.29496862]
[1680486280065,2.79376728,1770.2,1769.8,0.29496862]
[1680486280273,2.78776728,1770.1,1769.5,0.28255]
[1680486280574,2.79376728,1770.2,1769.7,0.28252]
[1680486280715,2.78776728,1770.1,1769.7,0.28252]
[1680486281054,0.01963925,1770.0,1769.7,0.28252]
[1680486281407,0.006,1770.2,1770.0,0.01245862]
[1680486281653,0.006,1770.2,1770.1,0.84739]
[1680486282211,0.006,1770.2,1770.1,0.28246]
[1680486282423,0.006,1770.2,1770.0,0.01245862]
[1680486282424,0.006,1770.2,1770.0,0.29492862]
[1680486282832,0.006,1770.2,1770.0,0.28247]
[1680486283048,0.006,1770.2,1770.0,0.28248]
[1680486283249,0.53016444,1770.1,1770.0,0.28248]
[1680486283743,0.53016444,1770.1,1769.8,0.01245862]
[1680486284052,2.78776728,1770.0,1769.8,0.2825]
[1680486284223,0.33179317,1770.0,1769.8,0.28251]
[1680486284422,0.006,1770.2,1769.8,0.28251]
[1680486284726,0.006,1770.2,1770.1,0.01245862]
[1680486284937,0.006,1770.2,1770.1,0.29491862]
[1680486285808,0.006,1770.2,1770.1,0.29915974]
[1680486286037,0.53892862,1770.2,1770.1,0.29915974]
[1680486286695,0.62346073,1770.2,1770.1,0.28246]
[1680486286856,0.55856787,1770.2,1770.1,0.28246]
[1680486287854,0.53892862,1770.2,1770.1,0.28246]
[1680486288255,0.54333029,1770.2,1770.1,0.28246]
[1680486288656,0.54333029,1770.2,1770.1,0.29491862]
[1680486289184,0.01040167,1770.2,1770.1,0.29491862]
[1680486289975,0.006,1770.2,1770.1,0.29491862]
[1680486290317,0.006,1770.2,1770.1,0.28246]
[1680486291315,0.01040167,1770.2,1770.1,0.28246]
[1680486292207,0.006,1770.2,1770.1,0.28246]
[1680486293293,0.006,1770.2,1770.0,0.006]
[1680486293294,3.78130866,1770.2,1770.0,0.006]
[1680486293537,6.16589815,1770.1,1769.5,0.57112]
[1680486293700,0.018,1769.9,1769.6,0.28254]
[1680486293919,2.80576728,1769.9,1769.6,0.28254]
[1680486294233,2.80576728,1769.9,1769.5,0.28255]
[1680486294516,0.30021598,1769.8,1769.5,0.28255]
[1680486295115,0.30021598,1769.8,1769.3,0.28258]
[1680486295116,6.08798326,1769.8,1769.3,0.28258]
[1680486295317,6.08998326,1769.8,1769.3,0.28258]
[1680486295487,2.78776728,1769.7,1769.3,0.28258]
[1680486295685,3.29841598,1769.6,1769.3,0.28258]
[1680486295879,6.08618326,1769.6,1769.3,0.28258]
[1680486296121,6.08618326,1769.6,1769.1,1.13647]
[1680486296122,2.78776728,1769.5,1769.1,0.57123]
[1680486296320,3.28077673,1769.6,1769.2,0.2826]
[1680486296522,0.00650255,1769.7,1769.2,0.29505862]
[1680486296707,0.00450255,1769.7,1769.4,0.01245862]
[1680486296910,0.00450255,1769.7,1769.6,0.01245862]
[1680486297095,0.11000001,1770.3,1769.6,0.84763]
[1680486297096,0.09350256,1770.3,1769.6,0.84763]
[1680486297345,2.78776728,1770.2,1769.6,0.84763]
[1680486297516,2.18279897,1770.1,1769.7,0.01245862]
[1680486297721,2.78776728,1770.0,1769.7,0.29497862]
[1680486297919,2.78776728,1770.0,1769.7,0.01245862]
[1680486298222,0.5,1769.9,1769.6,0.006]
[1680486298426,0.5,1769.9,1769.7,0.28253]
[1680486298633,0.85,1769.9,1769.7,0.28253]
[1680486299154,0.85,1769.9,1769.6,0.28253]
[1680486299457,3.63776728,1769.9,1769.6,0.84762]
[1680486299630,3.503,1770.0,1769.6,0.86607862]
[1680486299631,3.003,1770.0,1769.6,0.86607862]
[1680486299831,0.003,1770.1,1769.8,0.01245862]
[1680486300039,0.11314181,1770.3,1769.9,0.2825]
[1680486300263,2.78776728,1770.2,1769.9,0.2825]
[1680486300557,0.11314181,1770.3,1769.9,0.2825]
[1680486300761,0.11314181,1770.3,1769.8,0.29921045]
[1680486300965,0.09350256,1770.3,1770.2,0.01245862]
[1680486301668,2.90090909,1770.3,1769.8,0.28251]
[1680486301821,4.06539957,1770.2,1769.6,0.006]
[1680486302167,0.98754138,1769.6,1769.2,0.006]
[1680486302367,2.78776728,1769.3,1768.8,0.002]
[1680486302549,2.78776728,1769.3,1768.8,0.006]
[1680486302730,3.02489675,1769.2,1768.8,0.28267]
[1680486303064,3.02489675,1769.2,1768.7,0.1]
[1680486303065,3.03362437,1769.2,1768.7,0.1]
[1680486303227,2.78776728,1769.1,1768.8,0.86047862]
[1680486303425,3.03004589,1769.2,1768.8,0.86047862]
[1680486303625,0.29443165,1769.2,1768.8,0.86047862]
[1680486303826,0.67805,1769.8,1768.8,0.85226423]
[1680486304040,2.78776728,1769.7,1769.1,0.01245862]
[1680486304242,0.00436815,1769.2,1769.1,0.29506862]
[1680486304454,0.003,1769.8,1769.1,0.29506862]
[1680486304455,0.003,1769.8,1769.4,0.01245862]
[1680486304761,0.003,1769.8,1769.5,0.28256]
[1680486304762,2.78776728,1769.8,1769.5,0.28256]
[1680486304999,0.27877673,1769.8,1769.6,0.01245862]
[1680486305172,0.003,1770.0,1769.1,0.29062]
[1680486305173,3.01379728,1769.7,1769.1,0.29062]
[1680486305495,3.01379728,1769.7,1768.9,0.28865]
[1680486305496,3.46584728,1769.7,1768.9,0.28865]
[1680486305697,2.78776728,1769.3,1769.0,0.01245862]
[1680486306199,3.0,1769.2,1769.0,0.01245862]
[1680486306494,2.78776728,1769.1,1769.0,0.01245862]
[1680486306674,5.78776728,1769.1,1769.0,0.01245862]
[1680486306872,2.79076728,1769.1,1768.7,0.67138]
[1680486307056,3.0,1769.0,1768.7,0.102]
[1680486307258,3.08776728,1768.9,1768.7,0.1]
[1680486307495,3.0,1768.8,1768.7,0.1]
[1680486307704,3.0,1768.8,1768.7,0.38269]
[1680486307884,0.003,1769.1,1768.8,0.01245862]
[1680486308087,2.79212146,1769.1,1768.8,0.01245862]
[1680486308462,3.07133361,1769.1,1768.8,0.01245862]
[1680486308699,3.0,1769.0,1768.8,0.29512862]
[1680486308867,3.0,1769.0,1768.8,0.86047862]